fUSD/lending_fUSD_20251225
["ID","MTS","AMOUNT","RATE_DAILY","PERIOD"]
[399723685,1766635857420,-205.74864735,0.00035088,7]
[399723686,1766635857430,-150.0,0.00035088,7]
[399723687,1766635857440,-150.0,0.00035088,7]
[399723688,1766635857449,-150.0,0.00035088,7]
[399723689,1766635857460,-150.0,0.00035088,7]
[399723690,1766635857469,-150.0,0.00035088,7]
[399723691,1766635857479,-150.0,0.00035088,7]
[399723692,1766635857488,-150.60489648,0.00035088,7]
[399723693,1766635857497,-150.0,0.00035088,7]
[399723694,1766635857507,-150.0,0.00035088,7]
[399723695,1766635857518,-150.0,0.00035088,7]
[399723696,1766635857527,-205.74864735,0.00035127,7]
[399723697,1766635857537,-205.74864735,0.00035166,7]
[399723698,1766635857546,-205.74864735,0.00035206,7]
[399723699,1766635857555,-150.0,0.00035227,7]
[399723700,1766635857564,-205.74864735,0.00035245,7]
[399723701,1766635857577,-150.0,0.00035257,7]
[399723702,1766635857586,-205.74864735,0.00035285,7]
[399723703,1766635857595,-150.0,0.00035293,7]
[399723704,1766635857605,-152.28,0.000353,14]
[399723705,1766635857615,-150.0,0.00035304,7]
[399723706,1766635857625,-150.0,0.00035304,7]
[399723707,1766635857635,-205.74864735,0.00035324,7]
[399723708,1766635857644,-500.0,0.00035342,11]
[399723709,1766635857654,-500.0,0.00035342,11]
[399723710,1766635857664,-500.0,0.00035342,11]
[399723711,1766635857674,-500.0,0.00035342,11]
[399723712,1766635857683,-500.0,0.00035342,11]
[399723713,1766635857692,-500.0,0.00035342,11]
[399723714,1766635857701,-559.47231222,0.00035342,11]
[399723715,1766635857710,-500.0,0.00035342,11]
[399723716,1766635857719,-2322.26,0.00035342,11]
[399723717,1766635857728,-500.0,0.00035342,11]
[399723718,1766635857737,-1209.56,0.00035342,11]
[399723719,1766635857748,-271.86472124,0.00035342,11]
[399723720,1766635857758,-500.0,0.00035342,11]
[399723721,1766635857767,-5595.09,0.00035342,11]
[399723722,1766635857777,-549.23,0.00035342,11]
[399723723,1766635857787,-308.2495469,0.00035342,11]
[399723724,1766635857796,-500.0,0.00035342,11]
[399723725,1766635857805,-578.46,0.00035342,11]
[399723726,1766635857814,-585.55,0.00035342,5]
[399723727,1766635857824,-1000.0,0.00035346,11]
[399723728,1766635857834,-205.74864735,0.00035363,7]
[399723729,1766635857844,-150.0,0.00035366,7]
[399723730,1766635857854,-150.0,0.00035388,7]
[399723731,1766635857864,-2382.5,0.00035395,4]
[399723732,1766635857874,-205.74864735,0.00035403,7]
[399723733,1766635857884,-150.0,0.00035413,7]
[399723734,1766635857894,-150.0,0.00035427,7]
[399723735,1766635857904,-205.74864735,0.00035442,7]
[399723736,1766635857913,-205.74864735,0.00035481,7]
[399723737,1766635857923,-150.0,0.00035498,7]
[399723738,1766635857933,-150.0,0.00035505,7]
[399723739,1766635857943,-205.74864735,0.00035521,7]
[399723740,1766635857955,-150.0,0.00035521,7]
[399723741,1766635857964,-150.0,0.00035521,7]
[399723742,1766635857974,-1000.0,0.00035536,4]
[399723743,1766635857983,-205.74864735,0.0003556,7]
[399723744,1766635857993,-150.0,0.00035575,7]
[399723745,1766635858002,-150.0,0.00035575,7]
[399723746,1766635858011,-150.0,0.00035596,7]
[399723747,1766635858020,-205.74864735,0.000356,7]
[399723748,1766635858030,-223.45632631,0.00035603,2]
[399723749,1766635858039,-500.0,0.00035616,11]
[399723750,1766635858048,-505.51144733,0.00035616,11]
[399723751,1766635858057,-500.0,0.00035616,11]
[399723752,1766635858072,-500.0,0.00035616,11]
[399723753,1766635858083,-500.0,0.00035616,11]
[399723754,1766635858092,-500.0,0.00035616,11]
[399723755,1766635858103,-500.0,0.00035616,11]
[399723756,1766635858112,-2322.26,0.00035616,11]
[399723757,1766635858122,-500.0,0.00035616,11]
[399723758,1766635858132,-1209.56,0.00035616,11]
[399723759,1766635858143,-2879.39,0.00035616,120]
[399723760,1766635858153,-533.60328756,0.00035616,11]
[399723761,1766635858162,-5595.09,0.00035616,11]
[399723762,1766635858172,-549.23,0.00035616,11]
[399723763,1766635858181,-500.0,0.00035616,11]
[399723764,1766635858192,-578.46,0.00035616,11]
[399723765,1766635858202,-585.55,0.00035616,5]
[399723766,1766635858212,-500.0,0.00035616,7]
[399723767,1766635858223,-527.16223238,0.00035616,7]
[399723768,1766635858233,-337.54795261,0.00035616,2]
[399723769,1766635858243,-205.74864735,0.00035639,7]
[399723770,1766635858253,-150.0,0.00035645,7]
[399723771,1766635858292,-205.74864735,0.00035678,7]
[399723772,1766635858303,-150.0,0.00035687,7]
[399723773,1766635858313,-29657.05,0.000357,14]
[399723774,1766635858323,-150.0,0.00035703,7]
[399723775,1766635858333,-205.74864735,0.00035718,7]
[399723776,1766635858343,-1000.0,0.00035725,11]
[399723777,1766635858353,-150.0,0.00035737,7]
[399723778,1766635858362,-150.0,0.00035737,7]
[399723779,1766635858372,-150.0,0.00035737,7]
[399723780,1766635858382,-205.74864735,0.00035757,7]
[399723781,1766635858392,-150.0,0.00035766,7]
[399723782,1766635858402,-150.0,0.00035784,7]
[399723783,1766635858411,-205.74864735,0.00035797,7]
[399723784,1766635858420,-205.74864735,0.00035836,7]
[399723785,1766635858430,-150.0,0.00035861,2]
[399723786,1766635858440,-205.74864735,0.00035875,7]
[399723787,1766635858449,-500.0,0.0003589,11]
[399723788,1766635858459,-500.0,0.0003589,11]
[399723789,1766635858470,-609.7619569,0.0003589,11]
[399723790,1766635858480,-500.0,0.0003589,11]
[399723791,1766635858491,-444.08608284,0.0003589,11]
[399723792,1766635858501,-500.0,0.0003589,11]
[399723793,1766635858511,-2322.26,0.0003589,11]
[399723794,1766635858520,-500.0,0.0003589,11]
[399723795,1766635858529,-1209.56,0.0003589,11]
[399723796,1766635858538,-5595.09,0.0003589,11]
[399723797,1766635858548,-549.23,0.0003589,11]
[399723798,1766635858557,-500.0,0.0003589,11]
[399723799,1766635858567,-578.46,0.0003589,11]
[399723800,1766635858582,-585.55,0.0003589,5]
[399723801,1766635858592,-663.02,0.000359,14]
[399723802,1766635858602,-6181.0,0.000359,2]
[399723803,1766635858612,-28192.06716255,0.00035904,2]
[399723804,1766635858622,-150.0,0.00035908,7]
[399723805,1766635858632,-205.74864735,0.00035915,7]
[399723806,1766635858643,-9957.40381954,0.00035915,2]
[399723807,1766635858654,-150.0,0.00035923,7]
[399723808,1766635858664,-1000.0,0.00035929,14]
[399723809,1766635858674,-150.0,0.00035935,7]
[399723810,1766635858684,-205.74864735,0.00035954,7]
[399723811,1766635858694,-150.0,0.00035954,7]
[399723812,1766635858704,-150.0,0.00035954,7]
[399723813,1766635858714,-150.0,0.00035987,7]
[399723814,1766635858724,-205.74864735,0.00035993,7]
[399723815,1766635858734,-287.98066851,0.00035999,11]
[399723816,1766635858743,-500.0,0.00035999,11]
[399723817,1766635858754,-209.5,0.00036,30]
[399723818,1766635858764,-205.74864735,0.00036033,7]
[399723819,1766635858774,-150.0,0.00036062,7]
[399723820,1766635858783,-150.0,0.00036062,7]
[399723821,1766635858793,-150.0,0.00036062,7]
[399723822,1766635858802,-150.0,0.00036062,7]
[399723823,1766635858815,-150.0,0.00036062,7]
[399723824,1766635858825,-150.0,0.00036062,7]
[399723825,1766635858834,-205.74864735,0.00036072,7]
[399723826,1766635858844,-1000.0,0.00036104,11]
[399723827,1766635858853,-150.0,0.00036105,7]
[399723828,1766635858863,-205.74864735,0.00036112,7]
[399723829,1766635858874,-150.0,0.00036114,7]
[399723830,1766635858885,-205.74864735,0.00036151,7]
[399723831,1766635858895,-500.0,0.00036164,11]
[399723832,1766635858905,-500.0,0.00036164,11]
[399723833,1766635858916,-500.0,0.00036164,11]
[399723834,1766635858926,-500.0,0.00036164,11]
[399723835,1766635858935,-2322.26,0.00036164,11]
[399723836,1766635858944,-500.0,0.00036164,11]
[399723837,1766635858955,-1209.56,0.00036164,11]
[399723838,1766635858965,-5595.09,0.00036164,11]
[399723839,1766635858975,-549.23,0.00036164,11]
[399723840,1766635858984,-500.0,0.00036164,11]
[399723841,1766635858994,-578.46,0.00036164,11]
[399723842,1766635859004,-585.55,0.00036164,5]
[399723843,1766635859015,-150.0,0.00036171,7]
[399723844,1766635859025,-150.0,0.00036171,7]
[399723845,1766635859035,-205.74864735,0.0003619,7]
[399723846,1766635859045,-29657.05,0.000362,14]
[399723847,1766635859054,-150.0,0.00036202,7]
[399723848,1766635859063,-1000.0,0.00036203,14]
[399723849,1766635859073,-205.74864735,0.0003623,7]
[399723850,1766635859083,-205.74864735,0.00036269,7]
[399723851,1766635859092,-150.0,0.00036274,7]
[399723852,1766635859102,-150.0,0.00036287,7]
[399723853,1766635859113,-205.74864735,0.00036308,7]
[399723854,1766635859123,-150.0,0.00036319,7]
[399723855,1766635859134,-150.0,0.00036341,7]
[399723856,1766635859145,-205.74864735,0.00036348,7]
[399723857,1766635859154,-150.0,0.00036387,7]
[399723858,1766635859164,-205.74864735,0.00036387,7]
[399723859,1766635859174,-150.0,0.00036387,7]
[399723860,1766635859184,-150.0,0.00036387,7]
[399723861,1766635859194,-503.985,0.00036421,45]
[399723862,1766635859204,-6915.298,0.00036421,45]
[399723863,1766635859214,-205.74864735,0.00036427,7]
[399723864,1766635859226,-500.0,0.00036438,11]
[399723865,1766635859236,-500.0,0.00036438,11]
[399723866,1766635859245,-500.0,0.00036438,11]
[399723867,1766635859255,-500.0,0.00036438,11]
[399723868,1766635859265,-2322.26,0.00036438,11]
[399723869,1766635859275,-1209.56,0.00036438,11]
[399723870,1766635859285,-5595.09,0.00036438,11]
[399723871,1766635859295,-549.23,0.00036438,11]
[399723872,1766635859304,-500.0,0.00036438,11]
[399723873,1766635859314,-578.46,0.00036438,11]
[399723874,1766635859325,-585.55,0.00036438,5]
[399723875,1766635859335,-150.0,0.00036444,7]
[399723876,1766635859345,-205.74864735,0.00036466,7]
[399723877,1766635859355,-150.0,0.0003648,7]
[399723878,1766635859366,-1000.0,0.00036483,11]
[399723879,1766635859376,-205.74864735,0.00036505,7]
[399723880,1766635859387,-150.0,0.00036524,7]
[399723881,1766635859397,-205.74864735,0.00036545,7]
[399723882,1766635859407,-150.0,0.0003655,7]
[399723883,1766635859416,-150.0,0.0003655,7]
[399723884,1766635859426,-205.74864735,0.00036584,7]
[399723885,1766635859437,-150.0,0.00036587,7]
[399723886,1766635859448,-150.0,0.00036604,7]
[399723887,1766635859458,-150.0,0.00036604,7]
[399723888,1766635859468,-150.0,0.00036613,7]
[399723889,1766635859478,-150.0,0.00036619,7]
[399723890,1766635859488,-205.74864735,0.00036623,7]
[399723891,1766635859498,-205.74864735,0.00036663,7]
[399723892,1766635859508,-547.0,0.00036685,2]
[399723893,1766635859518,-205.74864735,0.00036702,7]
[399723894,1766635859528,-500.0,0.00036712,11]
[399723895,1766635859538,-500.0,0.00036712,11]
[399723896,1766635859547,-500.0,0.00036712,11]
[399723897,1766635859557,-363.39306336,0.00036712,11]
[399723898,1766635859567,-2322.26,0.00036712,11]
[399723899,1766635859581,-1209.56,0.00036712,11]
[399723900,1766635859590,-5595.09,0.00036712,11]
[399723901,1766635859601,-549.23,0.00036712,11]
[399723902,1766635859610,-500.0,0.00036712,11]
[399723903,1766635859621,-578.46,0.00036712,11]
[399723904,1766635859631,-585.55,0.00036712,5]
[399723905,1766635859642,-150.0,0.00036712,7]
[399723906,1766635859653,-16447.84435987,0.0003672,2]
[399723907,1766635859664,-150.0,0.00036729,7]
[399723908,1766635859673,-205.74864735,0.00036742,7]
[399723909,1766635859682,-150.0,0.00036759,7]
[399723910,1766635859692,-205.74864735,0.00036781,7]
[399723911,1766635859701,-150.0,0.00036783,7]
[399723912,1766635859711,-29657.05,0.000368,14]
[399723913,1766635859721,-205.74864735,0.0003682,7]
[399723914,1766635859731,-150.0,0.0003682,7]
[399723915,1766635859742,-150.0,0.0003682,7]
[399723916,1766635859751,-205.74864735,0.0003686,7]
[399723917,1766635859763,-1000.0,0.00036862,11]
[399723918,1766635859772,-179.56354722,0.00036886,7]
[399723919,1766635859782,-497.36426608,0.00036886,2]
[399723920,1766635859791,-150.0,0.00036887,7]
[399723921,1766635859801,-150.0,0.00036898,7]
[399723922,1766635859811,-205.74864735,0.00036899,7]
[399723923,1766635859820,-173.81,0.000369,14]
[399723924,1766635859830,-1327.0,0.00036905,2]
[399723925,1766635859840,-1610.0,0.00036905,2]
[399723926,1766635859850,-612.0,0.00036905,2]
[399723927,1766635859860,-3459.0,0.00036905,2]
[399723928,1766635859870,-1263.0,0.00036905,2]
[399723929,1766635859880,-432.0,0.00036905,2]
[399723930,1766635859890,-912.0,0.00036905,2]
[399723931,1766635859899,-1198.0,0.00036905,2]
[399723932,1766635859909,-4807.0,0.00036905,2]
[399723933,1766635859919,-564.0,0.00036905,2]
[399723934,1766635859928,-2430.0,0.00036905,2]
[399723935,1766635859938,-150.0,0.00036934,7]
[399723936,1766635859947,-205.74864735,0.00036939,7]
[399723937,1766635859957,-150.0,0.00036952,7]
[399723938,1766635859967,-205.74864735,0.00036978,7]
[399723939,1766635859977,-500.0,0.00036986,11]
[399723940,1766635859987,-500.0,0.00036986,11]
[399723941,1766635859996,-444.34106606,0.00036986,11]
[399723942,1766635860006,-2322.26,0.00036986,11]
[399723943,1766635860016,-1209.56,0.00036986,11]
[399723944,1766635860026,-2879.39,0.00036986,120]
[399723945,1766635860037,-5595.09,0.00036986,11]
[399723946,1766635860047,-549.23,0.00036986,11]
[399723947,1766635860058,-492.29775278,0.00036986,11]
[399723948,1766635860068,-500.0,0.00036986,120]
[399723949,1766635860077,-242.06,0.00036986,120]
[399723950,1766635860087,-578.46,0.00036986,11]
[399723951,1766635860097,-585.55,0.00036986,5]
[399723952,1766635860107,-663.02,0.00037,14]
[399723953,1766635860117,-205.74864735,0.00037017,7]
[399723954,1766635860128,-150.0,0.00037037,7]
[399723955,1766635860138,-150.0,0.00037037,7]
[399723956,1766635860148,-150.0,0.00037037,7]
[399723957,1766635860158,-150.0,0.00037037,7]
[399723958,1766635860168,-150.0,0.00037037,7]
[399723959,1766635860179,-150.0,0.00037037,7]
[399723960,1766635860189,-150.0,0.00037037,7]
[399723961,1766635860199,-150.0,0.00037037,7]
[399723962,1766635860209,-205.74864735,0.00037057,7]
[399723963,1766635860219,-205.74864735,0.00037096,7]
[399723964,1766635860229,-150.0,0.00037122,7]
[399723965,1766635860238,-205.74864735,0.00037135,7]
[399723966,1766635860249,-150.0,0.0003714,7]
[399723967,1766635860259,-205.74864735,0.00037175,7]
[399723968,1766635860271,-150.0,0.00037176,7]
[399723969,1766635860281,-150.0,0.00037187,7]
[399723970,1766635860291,-2382.5,0.00037197,5]
[399723971,1766635860301,-1000.0,0.000372,7]
[399723972,1766635860311,-205.74864735,0.00037214,7]
[399723973,1766635860321,-1000.0,0.00037241,11]
[399723974,1766635860331,-205.74864735,0.00037254,7]
[399723975,1766635860342,-150.0,0.00037254,7]
[399723976,1766635860353,-150.0,0.00037254,7]
[399723977,1766635860363,-500.0,0.0003726,11]
[399723978,1766635860373,-500.0,0.0003726,11]
[399723979,1766635860383,-2322.26,0.0003726,11]
[399723980,1766635860394,-1209.56,0.0003726,11]
[399723981,1766635860404,-5595.09,0.0003726,11]
[399723982,1766635860415,-549.23,0.0003726,11]
[399723983,1766635860426,-578.46,0.0003726,11]
[399723984,1766635860436,-585.55,0.0003726,5]
[399723985,1766635860447,-150.0,0.00037291,7]
[399723986,1766635860458,-205.74864735,0.00037293,7]
[399723987,1766635860469,-150.0,0.00037315,7]
[399723988,1766635860480,-205.74864735,0.00037332,7]
[399723989,1766635860490,-150.0,0.00037345,7]
[399723990,1766635860500,-150.0,0.00037362,7]
[399723991,1766635860510,-205.74864735,0.00037372,7]
[399723992,1766635860520,-162.0,0.000374,11]
[399723993,1766635860530,-205.74864735,0.00037411,7]
[399723994,1766635860540,-205.74864735,0.0003745,7]
[399723995,1766635860550,-150.0,0.00037455,7]
[399723996,1766635860560,-150.0,0.00037461,7]
[399723997,1766635860570,-150.0,0.0003747,7]
[399723998,1766635860583,-150.0,0.0003747,7]
[399723999,1766635860593,-150.0,0.00037487,7]
[399724000,1766635860603,-205.74864735,0.0003749,7]
[399724001,1766635860614,-150.0,0.00037524,7]
[399724002,1766635860624,-150.0,0.00037524,7]
[399724003,1766635860633,-205.74864735,0.00037529,7]
[399724004,1766635860643,-500.0,0.00037534,11]
[399724005,1766635860656,-500.0,0.00037534,11]
[399724006,1766635860666,-2322.26,0.00037534,11]
[399724007,1766635860677,-1209.56,0.00037534,11]
[399724008,1766635860687,-5595.09,0.00037534,11]
[399724009,1766635860697,-549.23,0.00037534,11]
[399724010,1766635860707,-578.46,0.00037534,11]
[399724011,1766635860717,-585.55,0.00037534,5]
[399724012,1766635860727,-150.0,0.0003755,7]
[399724013,1766635860738,-205.74864735,0.00037569,7]
[399724014,1766635860748,-150.0,0.00037594,7]
[399724015,1766635860758,-209.5,0.000376,30]
[399724016,1766635860769,-29657.05,0.000376,14]
[399724017,1766635860779,-205.74864735,0.00037608,7]
[399724018,1766635860789,-1000.0,0.0003762,11]
[399724019,1766635860799,-201.12732165,0.00037623,2]
[399724020,1766635860809,-150.0,0.0003763,7]
[399724021,1766635860819,-205.74864735,0.00037647,7]
[399724022,1766635860829,-150.0,0.00037687,7]
[399724023,1766635860839,-205.74864735,0.00037687,7]
[399724024,1766635860849,-150.0,0.00037687,7]
[399724025,1766635860858,-150.0,0.00037687,7]
[399724026,1766635860867,-849.0,0.000377,2]
[399724027,1766635860877,-205.74864735,0.00037726,7]
[399724028,1766635860887,-150.0,0.00037733,7]
[399724029,1766635860897,-1000.0,0.00037745,30]
[399724030,1766635860906,-500.0,0.00037746,44]
[399724031,1766635860916,-500.0,0.00037746,44]
[399724032,1766635860926,-1500.0,0.00037746,44]
[399724033,1766635860936,-514.84070869,0.00037746,44]
[399724034,1766635860946,-500.0,0.00037746,44]
[399724035,1766635860957,-500.0,0.00037746,44]
[399724036,1766635860967,-1500.0,0.00037746,44]
[399724037,1766635860978,-500.0,0.00037746,44]
[399724038,1766635860989,-250.0,0.00037746,44]
[399724039,1766635860999,-250.0,0.00037746,44]
[399724040,1766635861010,-250.0,0.00037746,44]
[399724041,1766635861021,-151.0,0.00037746,44]
[399724042,1766635861033,-1444.0,0.00037753,120]
[399724043,1766635861043,-150.0,0.00037755,7]
[399724044,1766635861054,-1594.12069331,0.00037764,45]
[399724045,1766635861064,-205.74864735,0.00037766,7]
[399724046,1766635861074,-150.0,0.00037787,7]
[399724047,1766635861084,-150.0,0.000378,7]
[399724048,1766635861094,-1000.0,0.000378,7]
[399724049,1766635861104,-205.74864735,0.00037805,7]
[399724050,1766635861114,-500.0,0.00037808,11]
[399724051,1766635861123,-500.0,0.00037808,11]
[399724052,1766635861134,-2322.26,0.00037808,11]
[399724053,1766635861144,-1209.56,0.00037808,11]
[399724054,1766635861155,-5595.09,0.00037808,11]
[399724055,1766635861164,-549.23,0.00037808,11]
[399724056,1766635861174,-578.46,0.00037808,11]
[399724057,1766635861184,-585.55,0.00037808,5]
[399724058,1766635861194,-16447.84435987,0.0003781,2]
[399724059,1766635861205,-12287.41952416,0.0003783,2]
[399724060,1766635861215,-205.74864735,0.00037844,7]
[399724061,1766635861226,-150.0,0.00037872,7]
[399724062,1766635861237,-205.74864735,0.00037884,7]
[399724063,1766635861247,-179.56354721,0.00037893,7]
[399724064,1766635861258,-497.36426608,0.00037893,2]
[399724065,1766635861268,-500.0,0.00037899,31]
[399724066,1766635861278,-500.0,0.00037899,31]
[399724067,1766635861287,-1500.0,0.00037899,31]
[399724068,1766635861298,-496.47127164,0.00037899,31]
[399724069,1766635861309,-500.0,0.00037899,31]
[399724070,1766635861318,-500.0,0.00037899,31]
[399724071,1766635861328,-1500.0,0.00037899,31]
[399724072,1766635861339,-500.0,0.00037899,31]
[399724073,1766635861350,-250.0,0.00037899,31]
[399724074,1766635861360,-250.0,0.00037899,31]
[399724075,1766635861371,-250.0,0.00037899,31]
[399724076,1766635861513,-151.0,0.00037899,31]
[399724077,1766635861524,-29657.05,0.000379,14]
[399724078,1766635861534,-150.0,0.00037903,7]
[399724079,1766635861544,-150.0,0.00037903,7]
[399724080,1766635861554,-201.12732165,0.00037912,2]
[399724081,1766635861564,-205.74864735,0.00037923,7]
[399724082,1766635861575,-150.0,0.0003796,7]
[399724083,1766635861587,-205.74864735,0.00037962,7]
[399724084,1766635861596,-150.0,0.00037969,7]
[399724085,1766635861606,-1000.0,0.00037999,11]
[399724086,1766635861616,-161.0,0.00038,30]
[399724087,1766635861626,-155.0,0.00038,30]
[399724088,1766635861636,-205.74864735,0.00038002,7]
[399724089,1766635861646,-150.0,0.00038012,7]
[399724090,1766635861659,-150.0,0.00038012,7]
[399724091,1766635861669,-150.0,0.00038012,7]
[399724092,1766635861679,-150.0,0.00038012,7]
[399724093,1766635861690,-150.0,0.00038012,7]
[399724094,1766635861701,-150.0,0.00038012,7]
[399724095,1766635861711,-205.74864735,0.00038041,7]
[399724096,1766635861722,-150.0,0.00038061,2]
[399724097,1766635861732,-150.0,0.00038061,2]
[399724098,1766635861743,-150.0,0.00038061,2]
[399724099,1766635861754,-150.0,0.00038061,2]
[399724100,1766635861764,-150.0,0.00038061,2]
[399724101,1766635861774,-150.0,0.00038061,2]
[399724102,1766635861785,-150.0,0.00038061,2]
[399724103,1766635861795,-150.0,0.00038061,2]
[399724104,1766635861806,-150.0,0.00038061,2]
[399724105,1766635861816,-205.74864735,0.00038081,7]
[399724106,1766635861826,-500.0,0.00038082,11]
[399724107,1766635861836,-523.97881855,0.00038082,11]
[399724108,1766635861848,-2322.26,0.00038082,11]
[399724109,1766635861858,-1209.56,0.00038082,11]
[399724110,1766635861869,-5595.09,0.00038082,11]
[399724111,1766635861880,-549.23,0.00038082,11]
[399724112,1766635861889,-578.46,0.00038082,11]
[399724113,1766635861899,-585.55,0.00038082,5]
[399724114,1766635861909,-150.0,0.00038087,7]
[399724115,1766635861918,-663.02,0.000381,14]
[399724116,1766635861928,-205.74864735,0.0003812,7]
[399724117,1766635861938,-150.0,0.0003812,7]
[399724118,1766635861948,-150.0,0.0003812,7]
[399724119,1766635861959,-150.0,0.00038133,30]
[399724120,1766635861970,-1643.77389615,0.00038133,30]
[399724121,1766635861979,-150.0,0.00038133,30]
[399724122,1766635861988,-501.68677073,0.00038133,30]
[399724123,1766635861997,-150.0,0.00038133,30]
[399724124,1766635862007,-13524.04876716,0.00038133,30]
[399724125,1766635862018,-150.0,0.00038139,7]
[399724126,1766635862028,-150.0,0.00038151,7]
[399724127,1766635862039,-205.74864735,0.00038159,7]
[399724128,1766635862049,-659.58,0.0003816,2]
[399724129,1766635862059,-659.58,0.0003816,2]
[399724130,1766635862069,-659.58,0.0003816,2]
[399724131,1766635862079,-659.58,0.0003816,2]
[399724132,1766635862089,-659.58,0.0003816,2]
[399724133,1766635862099,-659.58,0.0003816,2]
[399724134,1766635862109,-659.58,0.0003816,2]
[399724135,1766635862119,-659.58,0.0003816,2]
[399724136,1766635862129,-659.58,0.0003816,2]
[399724137,1766635862140,-659.58,0.0003816,2]
[399724138,1766635862150,-659.58,0.0003816,2]
[399724139,1766635862160,-659.58,0.0003816,2]
[399724140,1766635862170,-659.58,0.0003816,2]
[399724141,1766635862180,-659.58,0.0003816,2]
[399724142,1766635862191,-659.58,0.0003816,2]
[399724143,1766635862201,-659.58,0.0003816,2]
[399724144,1766635862211,-150.0,0.00038166,7]
[399724145,1766635862220,-205.74864735,0.00038199,7]
[399724146,1766635862230,-205.74864735,0.00038238,7]
[399724147,1766635862240,-2436.53,0.00038242,2]
[399724148,1766635862250,-1220.11,0.00038242,2]
[399724149,1766635862260,-1220.11,0.00038242,2]
[399724150,1766635862270,-1220.11,0.00038242,2]
[399724151,1766635862280,-300.0,0.00038255,2]
[399724152,1766635862290,-10000.0,0.00038256,2]
[399724153,1766635862300,-205.74864735,0.00038277,7]
[399724154,1766635862309,-201.12732165,0.00038281,2]
[399724155,1766635862320,-300.0,0.00038286,2]
[399724156,1766635862331,-150.0,0.0003829,7]
[399724157,1766635862342,-976.0,0.000383,2]
[399724158,1766635862351,-305.0,0.000383,2]
[399724159,1766635862361,-961.6227934,0.00038304,7]
[399724160,1766635862371,-150.0,0.00038308,7]
[399724161,1766635862382,-205.74864735,0.00038317,7]
[399724162,1766635862392,-150.0,0.00038337,7]
[399724163,1766635862403,-150.0,0.00038337,7]
[399724164,1766635862412,-150.0,0.00038337,7]
[399724165,1766635862423,-1000.0,0.00038343,7]
[399724166,1766635862433,-1000.0,0.00038348,7]
[399724167,1766635862447,-500.0,0.00038356,120]
[399724168,1766635862458,-2322.26,0.00038356,120]
[399724169,1766635862469,-1209.56,0.00038356,120]
[399724170,1766635862479,-2879.39,0.00038356,120]
[399724171,1766635862489,-5595.09,0.00038356,120]
[399724172,1766635862500,-549.23,0.00038356,120]
[399724173,1766635862510,-578.46,0.00038356,120]
[399724174,1766635862520,-585.55,0.00038356,5]
[399724175,1766635862530,-205.74864735,0.00038356,7]
[399724176,1766635862540,-1000.0,0.00038359,11]
[399724177,1766635862550,-13052.2421204,0.0003837,2]
[399724178,1766635862560,-150.0,0.00038371,7]
[399724179,1766635862570,-150.0,0.0003838,7]
[399724180,1766635862585,-150.0,0.00038387,7]
[399724181,1766635862595,-150.0,0.00038392,7]
[399724182,1766635862605,-205.74864735,0.00038396,7]
[399724183,1766635862616,-1000.0,0.000384,7]
[399724184,1766635862627,-150.0,0.00038408,7]